lending/lending_fUSD_20251020
["ID","MTS","AMOUNT","RATE_DAILY","PERIOD"]
[391932354,1761004242883,-817.0,0.0002065,2]
[391932357,1761004242893,-2056.324,0.0002065,2]
[391932360,1761004242903,-2591.0,0.0002065,2]
[391932363,1761004242914,-557.0,0.0002065,2]
[391932365,1761004242923,-6440.0,0.0002065,2]
[391932367,1761004242934,-186.35,0.00020837,2]
[391932369,1761004242944,-150.37,0.0002099,2]
[391932372,1761004242954,-20000.0,0.00021,2]
[391932374,1761004242964,-28077.85819344,0.00021,2]
[391932376,1761004242974,-1179.05640882,0.00021,2]
[391932378,1761004242984,-194.6199012,0.00021,2]
[391932380,1761004242994,-1000.0,0.00021151,2]
[391932381,1761004243004,-158.54,0.00021203,2]
[391932383,1761004243014,-362.72371075,0.00021337,2]
[391932386,1761004243024,-19233.12781112,0.000215,2]
[391932387,1761004243034,-219.42395649,0.000215,2]
[391932390,1761004243045,-2345.870406,0.00021567,2]
[391932391,1761004243054,-485.36290616,0.00021567,2]
[391932393,1761004243063,-5000.0,0.00021918,2]
[391932396,1761004243073,-173.65,0.00022564,2]
[391932397,1761004243083,-2345.870406,0.000229,2]
[391932400,1761004243093,-485.36290616,0.000229,2]
[391932402,1761004243102,-153.0,0.00023014,2]
[391932404,1761004243112,-153.0,0.00023014,2]
[391932405,1761004243122,-153.0,0.00023014,2]
[391932408,1761004243131,-153.0,0.00023014,2]
[391932409,1761004243141,-153.0,0.00023014,2]
[391932411,1761004243150,-153.0,0.00023014,2]
[391932413,1761004243159,-153.0,0.00023014,2]
[391932415,1761004243169,-153.0,0.00023014,2]
[391932417,1761004243177,-153.0,0.00023014,2]
[391932419,1761004243187,-153.0,0.00023014,2]
[391932421,1761004243196,-153.0,0.00023014,2]
[391932424,1761004243206,-153.0,0.00023014,2]
[391932426,1761004243217,-153.0,0.00023014,2]
[391932427,1761004243227,-153.0,0.00023014,2]
[391932430,1761004243238,-153.0,0.00023014,2]
[391932432,1761004243248,-153.0,0.00023014,2]
[391932434,1761004243258,-153.0,0.00023014,2]
[391932436,1761004243267,-153.0,0.00023014,2]
[391932438,1761004243281,-153.0,0.00023014,2]
[391932440,1761004243290,-153.0,0.00023014,2]
[391932442,1761004243299,-153.0,0.00023014,2]
[391932444,1761004243309,-153.0,0.00023014,2]
[391932446,1761004243319,-153.0,0.00023014,2]
[391932448,1761004243328,-153.0,0.00023014,2]
[391932450,1761004243337,-153.0,0.00023014,2]
[391932452,1761004243346,-153.0,0.00023014,2]
[391932454,1761004243357,-153.0,0.00023014,2]
[391932456,1761004243367,-153.0,0.00023014,2]
[391932458,1761004243376,-153.0,0.00023014,2]
[391932459,1761004243386,-153.0,0.00023014,2]
[391932462,1761004243396,-153.0,0.00023014,2]
[391932464,1761004243408,-153.0,0.00023014,2]
[391932466,1761004243417,-153.0,0.00023014,2]
[391932468,1761004243427,-153.0,0.00023014,2]
[391932470,1761004243437,-153.0,0.00023014,2]
[391932472,1761004243447,-153.0,0.00023014,2]
[391932473,1761004243456,-153.0,0.00023014,2]
[391932475,1761004243465,-153.0,0.00023014,2]
[391932478,1761004243474,-153.0,0.00023014,2]
[391932479,1761004243483,-153.0,0.00023014,2]
[391932482,1761004243493,-153.0,0.00023014,2]
[391932483,1761004243502,-153.0,0.00023014,2]
[391932486,1761004243511,-153.0,0.00023014,2]
[391932488,1761004243520,-153.0,0.00023014,2]
[391932489,1761004243530,-153.0,0.00023014,2]
[391932492,1761004243539,-153.0,0.00023014,2]
[391932493,1761004243548,-153.0,0.00023014,2]
[391932496,1761004243558,-153.0,0.00023014,2]
[391932497,1761004243567,-153.0,0.00023014,2]
[391932499,1761004243576,-153.0,0.00023014,2]
[391932501,1761004243586,-5512.0,0.000231,2]
[391932504,1761004243595,-500.0,0.00023233,2]
[391932505,1761004243604,-151.0,0.00023288,7]
[391932507,1761004243614,-153.117578,0.00023288,7]
[391932509,1761004243623,-151.0,0.00023288,7]
[391932511,1761004243632,-151.0,0.00023288,7]
[391932513,1761004243641,-151.0,0.00023288,7]
[391932515,1761004243651,-152.438774,0.00023288,7]
[391932517,1761004243660,-153.948765,0.00023288,7]
[391932520,1761004243669,-161.126229,0.00023288,7]
[391932521,1761004243679,-151.0,0.00023288,7]
[391932524,1761004243688,-151.0,0.00023288,7]
[391932526,1761004243697,-151.0,0.00023288,7]
[391932528,1761004243708,-151.0,0.00023288,7]
[391932529,1761004243718,-151.0,0.00023288,7]
[391932531,1761004243728,-151.0,0.00023288,7]
[391932534,1761004243739,-151.0,0.00023288,7]
[391932536,1761004243748,-151.0,0.00023288,7]
[391932537,1761004243758,-239.677425,0.00023288,7]
[391932540,1761004243767,-155.480852,0.00023288,7]
[391932541,1761004243776,-151.0,0.00023288,7]
[391932543,1761004243786,-151.0,0.00023288,7]
[391932546,1761004243795,-151.0,0.00023288,7]
[391932548,1761004243805,-151.0,0.00023288,7]
[391932550,1761004243815,-151.0,0.00023288,7]
[391932551,1761004243825,-299.524411,0.00023288,7]
[391932554,1761004243834,-151.0,0.00023288,7]
[391932555,1761004243844,-151.0,0.00023288,7]
[391932558,1761004243854,-151.0,0.00023288,7]
[391932560,1761004243863,-151.0,0.00023288,7]
[391932562,1761004243872,-249.89956,0.00023288,7]
[391932564,1761004243881,-151.0,0.00023288,7]
[391932566,1761004243890,-151.0,0.00023288,7]
[391932568,1761004243899,-151.0,0.00023288,7]
[391932570,1761004243908,-202.977688,0.00023288,7]
[391932572,1761004243918,-151.0,0.00023288,7]
[391932574,1761004243927,-152.0,0.00023288,7]
[391932576,1761004243936,-151.0,0.00023288,7]
[391932578,1761004243945,-151.0,0.00023288,7]
[391932580,1761004243955,-151.0,0.00023288,7]
[391932582,1761004243965,-151.0,0.00023288,7]
[391932584,1761004243974,-154.136954,0.00023288,7]
[391932586,1761004243984,-151.0,0.00023288,7]
[391932588,1761004243993,-151.0,0.00023288,7]
[391932590,1761004244002,-151.0,0.00023288,7]
[391932592,1761004244011,-151.0,0.00023288,7]
[391932594,1761004244021,-151.0,0.00023288,7]
[391932596,1761004244030,-151.0,0.00023288,7]
[391932598,1761004244039,-296.185564,0.00023288,7]
[391932600,1761004244048,-151.0,0.00023288,7]
[391932602,1761004244058,-151.0,0.00023288,7]
[391932604,1761004244068,-151.0,0.00023288,7]
[391932606,1761004244077,-151.0,0.00023288,7]
[391932608,1761004244086,-286.067336,0.00023288,7]
[391932610,1761004244095,-151.0,0.00023288,7]
[391932612,1761004244104,-151.0,0.00023288,7]
[391932614,1761004244113,-151.0,0.00023288,7]
[391932616,1761004244122,-263.363,0.00023288,7]
[391932618,1761004244132,-151.0,0.00023288,7]
[391932620,1761004244142,-151.0,0.00023288,7]
[391932622,1761004244151,-151.0,0.00023288,7]
[391932624,1761004244160,-151.0,0.00023288,7]
[391932626,1761004244169,-151.0,0.00023288,7]
[391932628,1761004244178,-151.0,0.00023288,7]
[391932630,1761004244187,-151.0,0.00023288,7]
[391932632,1761004244196,-151.0,0.00023288,7]
[391932634,1761004244205,-151.0,0.00023288,7]
[391932636,1761004244215,-151.0,0.00023288,7]
[391932638,1761004244224,-151.0,0.00023288,7]
[391932640,1761004244233,-171.403251,0.00023288,7]
[391932642,1761004244242,-151.875043,0.00023288,7]
[391932644,1761004244252,-151.0,0.00023288,7]
[391932646,1761004244262,-151.0,0.00023288,7]
[391932648,1761004244271,-151.0,0.00023288,7]
[391932650,1761004244284,-151.0,0.00023288,7]
[391932652,1761004244293,-151.0,0.00023288,7]
[391932654,1761004244302,-151.0,0.00023288,7]
[391932656,1761004244311,-151.0,0.00023288,7]
[391932658,1761004244322,-204.527474,0.00023288,7]
[391932660,1761004244332,-151.0,0.00023288,7]
[391932662,1761004244341,-151.812301,0.00023288,7]
[391932664,1761004244352,-151.0,0.00023288,7]
[391932666,1761004244363,-151.0,0.00023288,7]
[391932668,1761004244372,-151.0,0.00023288,7]
[391932670,1761004244382,-151.0,0.00023288,7]
[391932672,1761004244391,-151.0,0.00023288,7]
[391932674,1761004244400,-151.0,0.00023288,7]
[391932676,1761004244410,-151.0,0.00023288,7]
[391932678,1761004244419,-151.0,0.00023288,7]
[391932680,1761004244428,-166.446904,0.00023288,7]
[391932682,1761004244437,-205.690028,0.00023288,7]
[391932684,1761004244446,-295.562549,0.00023288,7]
[391932686,1761004244456,-20453.94,0.000234,7]
[391932688,1761004244465,-2000.0,0.000234,2]
[391932690,1761004244475,-786.0,0.0002365,2]
[391932692,1761004244483,-2441.8,0.0002365,2]
[391932694,1761004244492,-570.0,0.0002365,2]
[391932696,1761004244502,-2051.0,0.0002365,2]
[391932698,1761004244511,-454.471,0.0002365,2]
[391932700,1761004244520,-1307.0,0.0002365,2]
[391932703,1761004244529,-605.0,0.0002365,2]
[391932705,1761004244539,-715.167,0.0002365,2]
[391932707,1761004244548,-815.0,0.0002365,2]
[391932709,1761004244557,-2589.0,0.0002365,2]
[391932711,1761004244567,-555.0,0.0002365,2]
[391932713,1761004244576,-769.0,0.0002365,2]
[391932715,1761004244586,-652.91,0.00023836,2]
[391932717,1761004244595,-5513.0,0.000239,3]
[391932719,1761004244604,-2345.870406,0.00024233,2]
[391932721,1761004244613,-485.36290616,0.00024233,2]
[391932723,1761004244623,-273.58756315,0.00024551,2]
[391932725,1761004244632,-362.72371075,0.00024556,2]
[391932727,1761004244641,-5513.0,0.000246,5]
[391932729,1761004244650,-324.67,0.00024658,2]
[391932731,1761004244659,-1000.0,0.00024658,2]
[391932733,1761004244668,-5000.0,0.00024785,2]
[391932735,1761004244677,-5000.0,0.00024785,2]
[391932737,1761004244686,-5000.0,0.00024785,2]
[391932739,1761004244695,-5000.0,0.00024785,2]
[391932741,1761004244704,-5000.0,0.00024785,2]
[391932743,1761004244713,-150.37,0.0002479,2]
[391932745,1761004244722,-150.37,0.0002479,2]
[391932747,1761004244732,-379455.030896,0.000248,3]
[391932749,1761004244741,-173.63,0.00024829,2]
[391932751,1761004244751,-150.37,0.0002489,2]
[391932753,1761004244760,-238119.920695,0.000249,3]
[391932755,1761004244770,-501.38579682,0.00025,7]
[391932757,1761004244780,-156.0,0.00025,7]
[391932759,1761004244790,-2000.01,0.00025,2]
[391932761,1761004244799,-161.83329338,0.0002526,2]
[391932763,1761004244810,-2345.870406,0.00025567,2]
[391932765,1761004244819,-485.36290616,0.00025567,2]
[391932767,1761004244828,-17472.6132886,0.00025879,2]
[391932769,1761004244838,-156.0,0.0002589,7]
[391932771,1761004244847,-1093.24,0.00026422,2]
[391932773,1761004244857,-1774.23,0.00026422,2]
[391932775,1761004244866,-300.0,0.00026422,2]
[391932777,1761004244876,-412.69,0.00026422,2]
[391932779,1761004244885,-300.0,0.00026422,2]
[391932781,1761004244895,-336.34,0.00026422,2]
[391932783,1761004244904,-300.0,0.00026422,2]
[391932785,1761004244913,-566.42937771,0.00026463,2]
[391932787,1761004244922,-2045.0,0.0002665,2]
[391932789,1761004244931,-538.307,0.0002665,2]
[391932791,1761004244940,-299.49,0.00026676,2]
[391932793,1761004244950,-90589.09593632,0.000269,2]
[391932795,1761004244959,-2345.870406,0.000269,2]
[391932797,1761004244969,-485.36290616,0.000269,2]
[391932799,1761004244978,-250.0,0.00027,2]
[391932801,1761004244987,-1745.0,0.000271,2]
[391932803,1761004244996,-500.0,0.00027397,2]
[391932805,1761004245006,-800.42,0.00027397,2]
[391932807,1761004245015,-800.42,0.00027397,2]
[391932809,1761004245025,-800.42,0.00027397,2]
[391932811,1761004245034,-800.42,0.00027397,2]
[391932813,1761004245044,-800.42,0.00027397,2]
[391932815,1761004245053,-800.42,0.00027397,2]
[391932817,1761004245063,-800.42,0.00027397,2]
[391932818,1761004245072,-800.42,0.00027397,2]
[391932819,1761004245081,-800.42,0.00027397,2]
[391932820,1761004245090,-800.42,0.00027397,2]
[391932821,1761004245098,-800.42,0.00027397,2]
[391932822,1761004245108,-800.42,0.00027397,2]
[391932823,1761004245117,-800.42,0.00027397,2]
[391932826,1761004245250,-800.42,0.00027397,2]
[391932828,1761004245260,-800.42,0.00027397,2]
[391932830,1761004245270,-800.42,0.00027397,2]
[391932832,1761004245283,-800.42,0.00027397,2]
[391932834,1761004245292,-800.42,0.00027397,2]
[391932836,1761004245301,-800.42,0.00027397,2]
[391932838,1761004245310,-800.42,0.00027397,2]
[391932840,1761004245320,-800.42,0.00027397,2]
[391932842,1761004245329,-800.42,0.00027397,2]
[391932844,1761004245338,-800.42,0.00027397,2]
[391932846,1761004245347,-800.5,0.00027397,2]
[391932848,1761004245356,-500.0,0.00027397,2]
[391932850,1761004245366,-500.0,0.00027397,2]
[391932852,1761004245375,-500.0,0.00027397,2]
[391932854,1761004245384,-500.0,0.00027397,2]
[391932856,1761004245393,-500.0,0.00027397,2]
[391932858,1761004245403,-500.0,0.00027397,2]
[391932860,1761004245412,-500.0,0.00027397,2]
[391932862,1761004245421,-500.0,0.00027397,2]
[391932864,1761004245431,-500.0,0.00027397,2]
[391932866,1761004245439,-500.0,0.00027397,2]
[391932868,1761004245448,-500.0,0.00027397,2]
[391932870,1761004245458,-500.0,0.00027397,2]
[391932872,1761004245467,-286.10315325,0.00027397,2]
[391932874,1761004245477,-500.0,0.00027397,2]
[391932876,1761004245486,-500.0,0.00027397,2]
[391932878,1761004245495,-500.0,0.00027397,2]
[391932880,1761004245504,-500.0,0.00027397,2]
[391932882,1761004245513,-500.0,0.00027397,2]
[391932884,1761004245522,-500.0,0.00027397,2]
[391932886,1761004245531,-500.0,0.00027397,2]
[391932888,1761004245540,-500.0,0.00027397,2]
[391932890,1761004245550,-500.0,0.00027397,2]
[391932891,1761004245560,-500.0,0.00027397,2]
[391932893,1761004245570,-500.0,0.00027397,2]
[391932896,1761004245580,-500.0,0.00027397,2]
[391932897,1761004245589,-500.0,0.00027397,2]
[391932899,1761004245599,-500.0,0.00027397,2]
[391932901,1761004245609,-500.0,0.00027397,2]
[391932903,1761004245619,-500.0,0.00027397,2]
[391932906,1761004245628,-500.0,0.00027397,2]
[391932907,1761004245637,-500.0,0.00027397,2]
[391932910,1761004245646,-500.0,0.00027397,2]
[391932911,1761004245655,-500.0,0.00027397,2]
[391932913,1761004245665,-500.0,0.00027397,2]
[391932916,1761004245674,-509.19388357,0.00027397,2]
[391932917,1761004245684,-300.0,0.00027397,2]
[391932919,1761004245693,-300.0,0.00027397,2]
[391932922,1761004245702,-300.0,0.00027397,2]
[391932923,1761004245712,-300.0,0.00027397,2]
[391932926,1761004245722,-300.0,0.00027397,2]
[391932927,1761004245731,-300.0,0.00027397,2]
[391932929,1761004245740,-500.0,0.00027397,2]
[391932931,1761004245749,-500.0,0.00027397,2]
[391932933,1761004245759,-500.0,0.00027397,2]
[391932935,1761004245768,-500.0,0.00027397,2]
[391932937,1761004245777,-500.0,0.00027397,2]
[391932939,1761004245786,-500.0,0.00027397,2]
[391932941,1761004245798,-183.3665945,0.00027397,2]
[391932943,1761004245807,-2133.95,0.00027397,2]
[391932945,1761004245816,-2133.95,0.00027397,2]
[391932947,1761004245826,-2133.95,0.00027397,2]
[391932949,1761004245835,-2133.95,0.00027397,2]
[391932951,1761004245845,-2133.95,0.00027397,2]
[391932953,1761004245855,-2133.95,0.00027397,2]
[391932955,1761004245864,-2133.95,0.00027397,2]
[391932957,1761004245874,-2133.95,0.00027397,2]
[391932959,1761004245883,-2133.95,0.00027397,2]
[391932961,1761004245893,-2133.95,0.00027397,2]
[391932963,1761004245902,-2133.95,0.00027397,2]
[391932965,1761004245911,-2133.95,0.00027397,2]
[391932968,1761004245921,-2133.95,0.00027397,2]
[391932970,1761004245931,-2133.95,0.00027397,2]
[391932972,1761004245940,-2133.95,0.00027397,2]
[391932974,1761004245950,-2133.95,0.00027397,2]
[391932976,1761004245959,-2133.95,0.00027397,2]
[391932978,1761004245969,-2133.95,0.00027397,2]
[391932980,1761004245978,-2133.95,0.00027397,2]
[391932982,1761004245988,-2133.95,0.00027397,2]
[391932984,1761004245997,-2133.95,0.00027397,2]
[391932986,1761004246006,-2133.95,0.00027397,2]
[391932988,1761004246015,-2133.95,0.00027397,2]
[391932990,1761004246025,-2134.12995002,0.00027397,2]
[391932992,1761004246034,-300.0,0.00027397,2]
[391932993,1761004246044,-300.0,0.00027397,2]
[391932996,1761004246053,-300.0,0.00027397,2]
[391932998,1761004246063,-300.0,0.00027397,2]
[391933000,1761004246072,-300.0,0.00027397,2]
[391933001,1761004246083,-300.0,0.00027397,2]
[391933003,1761004246093,-300.0,0.00027397,2]
[391933006,1761004246103,-188.19007925,0.00027397,2]
[391933008,1761004246112,-1000.0,0.00027397,2]
[391933010,1761004246122,-1000.0,0.00027397,2]
[391933012,1761004246132,-1000.0,0.00027397,2]
[391933014,1761004246143,-1000.0,0.00027397,2]
[391933016,1761004246152,-1000.0,0.00027397,2]
[391933018,1761004246161,-1000.0,0.00027397,2]
[391933020,1761004246170,-1000.0,0.00027397,2]
[391933022,1761004246179,-1000.0,0.00027397,2]
[391933024,1761004246188,-353.49161724,0.00027397,2]
[391933026,1761004246197,-152.07816161,0.00027397,2]
[391933028,1761004246206,-324.67,0.00027397,2]
[391933030,1761004246215,-301.12,0.00027397,30]
[391933032,1761004246225,-300.0,0.00027397,2]
[391933034,1761004246234,-510.69,0.00027397,2]
[391933036,1761004246243,-4000.0,0.00027397,2]
[391933038,1761004246252,-173.65,0.00027472,2]
[391933040,1761004246261,-362.72371075,0.00027775,2]
[391933042,1761004246272,-50051.19610091,0.00028,2]
[391933044,1761004246285,-160.0,0.00028,2]
[391933046,1761004246295,-169.47215245,0.00028253,4]
[391933048,1761004246304,-9291.63,0.000287,2]
[391933050,1761004246314,-519.51,0.000287,2]
[391933052,1761004246326,-721.59,0.000287,7]
[391933053,1761004246335,-13087.38387822,0.0002875,2]
[391933054,1761004246345,-6128.81982688,0.0002876,2]
[391933055,1761004246355,-500.0,0.00029459,7]
[391933056,1761004246365,-230825.04771393,0.000295,2]
[391933057,1761004246376,-153.678044,0.00029591,3]
[391933058,1761004246385,-1000.0,0.00029599,2]
[391933059,1761004246394,-174.83,0.00029723,2]
[391933060,1761004246403,-1199.33,0.00029723,2]
[391933061,1761004246412,-2397.99,0.00029723,2]
[391933062,1761004246422,-450.0,0.00029733,7]
[391933063,1761004246431,-350.0,0.00029733,7]
[391933064,1761004246441,-500.0,0.000298,7]
[391933065,1761004246450,-1630.08895571,0.0002985,2]
[391933066,1761004246459,-1000.0,0.00029863,5]
[391933067,1761004246469,-350.0,0.0002987,7]
[391933068,1761004246478,-500.0,0.00029889,7]
[391933069,1761004246487,-163.93139466,0.0003,4]
[391933070,1761004246497,-30000.0,0.0003,4]
[391933071,1761004246506,-30000.0,0.0003,4]
[391933072,1761004246515,-30000.0,0.0003,4]
[391933073,1761004246524,-30000.0,0.0003,4]
[391933074,1761004246534,-34142.67073194,0.0003,4]
[391933075,1761004246543,-19550.74263548,0.0003,2]
[391933076,1761004246553,-1786.48878137,0.0003,2]
[391933077,1761004246563,-604.07121079,0.0003,2]
[391933078,1761004246572,-285151.70406959,0.0003,2]
[391933079,1761004246582,-8231.70125614,0.0003,2]
[391933080,1761004246591,-350.0,0.00030007,7]
[391933081,1761004246601,-307.0017397,0.0003013,2]
[391933082,1761004246610,-1055.45039039,0.0003013,2]
[391933083,1761004246620,-13617.14215309,0.0003013,2]
[391933084,1761004246629,-3428.60412218,0.0003013,2]
[391933086,1761004246638,-198.31772381,0.0003013,2]
[391933088,1761004246647,-240.93421333,0.0003013,2]
[391933090,1761004246656,-1203.62190278,0.0003013,2]
[391933092,1761004246665,-7601.95959776,0.0003013,2]
[391933094,1761004246675,-324.67,0.00030137,2]
[391933096,1761004246684,-200.0,0.00030137,2]
[391933098,1761004246693,-200.0,0.00030137,2]
[391933100,1761004246703,-500.0,0.00030223,7]
[391933102,1761004246712,-694.95,0.00030356,2]
[391933104,1761004246721,-500.0,0.00030361,7]
[391933106,1761004246730,-500.0,0.00030402,7]
[391933108,1761004246739,-500.0,0.00030408,7]
[391933110,1761004246748,-200.0,0.00030438,2]
[391933112,1761004246757,-546.62,0.00030587,2]
[391933114,1761004246766,-200.0,0.00030743,2]
[391933116,1761004246775,-1745.0,0.000308,2]
[391933118,1761004246784,-362.72371075,0.00030993,2]
[391933120,1761004246793,-159.0,0.00031,120]
[391933121,1761004246803,-200.0,0.0003105,2]
[391933123,1761004246812,-1870.0,0.00031091,2]
[391933125,1761004246821,-500.0,0.00031156,7]
[391933127,1761004246830,-530.41988366,0.00031169,2]
[391933129,1761004246839,-500.0,0.0003138,7]
[391933131,1761004246852,-205.59624012,0.00031433,120]
[391933133,1761004246862,-300.46,0.00031507,2]
[391933136,1761004246872,-500.0,0.00031515,7]
[391933138,1761004246882,-500.0,0.00031574,7]
[391933140,1761004246891,-161.83329338,0.00031576,2]
[391933142,1761004246899,-1000.0,0.00031633,2]
[391933144,1761004246909,-300.0,0.000318,2]
[391933146,1761004246918,-300.0,0.000318,2]
[391933148,1761004246928,-300.0,0.000318,2]
[391933150,1761004246938,-300.0,0.000318,2]
[391933152,1761004246947,-344.37495306,0.000318,2]
[391933153,1761004246956,-500.0,0.00031854,7]
[391933155,1761004246965,-167.01706099,0.00032,120]
[391933157,1761004246974,-236.7562325,0.00032,120]
[391933159,1761004246983,-181.02524297,0.00032,120]
[391933161,1761004246992,-182.04228766,0.00032,120]
[391933163,1761004247001,-511.84789198,0.00032,120]
[391933165,1761004247010,-315.99608494,0.00032,120]
[391933167,1761004247019,-10075.84057651,0.00032,120]
[391933169,1761004247029,-721.59,0.00032,30]
[391933171,1761004247038,-160.0,0.00032,120]
[391933173,1761004247048,-500.0,0.00032148,7]
[391933175,1761004247058,-152.0,0.00032167,3]
[391933177,1761004247068,-500.0,0.00032256,7]
[391933179,1761004247078,-1000.0,0.00032304,2]
[391933181,1761004247088,-301.12,0.00032379,30]
[391933183,1761004247097,-500.0,0.00032455,7]
[391933185,1761004247108,-20453.94,0.000325,7]
[391933187,1761004247117,-500.0,0.00032539,7]
[391933189,1761004247126,-500.0,0.00032548,7]
[391933190,1761004247135,-173.65,0.00032588,2]
[391933191,1761004247144,-165.38076884,0.00032658,30]
[391933192,1761004247153,-500.0,0.00032694,7]
[391933193,1761004247165,-1000.0,0.00032781,2]
[391933194,1761004247173,-500.0,0.00032829,7]
[391933195,1761004247183,-500.0,0.00032829,7]
[391933196,1761004247192,-1000.0,0.00032829,7]
[391933197,1761004247201,-150.0,0.00032831,2]
[391933198,1761004247211,-1000.0,0.00032876,30]
[391933199,1761004247220,-2033.87,0.00032876,120]
[391933200,1761004247230,-324.67,0.00032877,2]
[391933201,1761004247239,-500.0,0.00032877,5]
[391933202,1761004247248,-2783.72764091,0.0003288,30]
[391933203,1761004247258,-2783.72764091,0.0003288,30]
[391933204,1761004247267,-2783.72764091,0.0003288,30]
[391933205,1761004247276,-2783.72764091,0.0003288,30]
[391933206,1761004247285,-2783.72764091,0.0003288,30]
[391933207,1761004247295,-2783.72764091,0.0003288,30]
[391933208,1761004247309,-2783.72764091,0.0003288,30]
[391933209,1761004247318,-2783.72764091,0.0003288,30]
[391933210,1761004247327,-2783.72764091,0.0003288,30]
[391933211,1761004247336,-2783.72764091,0.0003288,30]
[391933212,1761004247345,-2783.72764091,0.0003288,30]
[391933213,1761004247354,-2783.72764091,0.0003288,30]
[391933214,1761004247364,-2783.72764091,0.0003288,30]
[391933215,1761004247373,-2783.72764091,0.0003288,30]
[391933216,1761004247382,-2783.72764091,0.0003288,30]
[391933217,1761004247391,-2783.72764091,0.0003288,30]
[391933218,1761004247400,-2783.72764091,0.0003288,30]
[391933219,1761004247409,-2783.72764091,0.0003288,30]
[391933220,1761004247418,-2783.72764091,0.0003288,30]
[391933221,1761004247427,-2783.72,0.0003288,30]
[391933222,1761004247436,-9291.63,0.000329,2]
[391933223,1761004247445,-519.51,0.000329,2]
[391933224,1761004247455,-500.0,0.00032932,5]
[391933225,1761004247464,-1425.0,0.00032979,2]
[391933226,1761004247473,-500.0,0.00032986,7]
[391933227,1761004247482,-500.0,0.00032987,5]
[391933228,1761004247491,-167.01706099,0.00033,120]
[391933229,1761004247500,-236.7562325,0.00033,120]
[391933230,1761004247509,-182.04228766,0.00033,120]
[391933231,1761004247518,-511.84789198,0.00033,120]
[391933232,1761004247527,-315.99608494,0.00033,120]
[391933233,1761004247536,-10075.84057651,0.00033,120]
[391933234,1761004247545,-7121.0,0.00033,5]
[391933235,1761004247554,-1000.0,0.00033013,30]
[391933236,1761004247563,-165.38076884,0.00033014,30]
[391933237,1761004247572,-500.0,0.00033041,5]
[391933238,1761004247581,-1425.0,0.00033088,2]
[391933239,1761004247590,-500.0,0.00033096,5]
[391933240,1761004247599,-1000.0,0.00033116,2]
[391933241,1761004247608,-1000.0,0.0003315,30]
[391933242,1761004247617,-500.0,0.00033151,5]
[391933243,1761004247626,-299.49,0.00033165,2]
[391933244,1761004247636,-500.0,0.00033206,5]
[391933245,1761004247645,-1146.49590013,0.00033221,2]
[391933246,1761004247654,-500.0,0.00033221,7]
[391933247,1761004247664,-500.0,0.00033261,5]
[391933248,1761004247673,-1000.0,0.00033287,30]
[391933249,1761004247682,-904.98077131,0.00033297,7]
[391933250,1761004247691,-218.65,0.000333,7]
[391933251,1761004247700,-218.64,0.000333,7]
[391933252,1761004247710,-352.94,0.000333,7]
[391933253,1761004247719,-500.0,0.00033304,7]
[391933254,1761004247728,-614.45133918,0.0003331,5]